bitfinex/quotes_BTCUSD_20240701
["timestamp","ask_amount","ask_price","bid_price","bid_amount"]
[1719806117381,2.02039724,63512.0,63511.0,0.003924]
[1719806118208,2.02039724,63512.0,63511.0,0.004924]
[1719806118409,2.02139724,63512.0,63511.0,0.004924]
[1719806118808,2.02039724,63512.0,63511.0,0.003924]
[1719806119418,1.94141915,63512.0,63511.0,0.000924]
[1719806119778,1.94141915,63512.0,63511.0,0.001924]
[1719806120250,1.82339724,63512.0,63511.0,0.001924]
[1719806120845,1.82439724,63512.0,63511.0,0.002924]
[1719806122280,1.91881258,63512.0,63511.0,0.002924]
[1719806122662,1.91881157,63512.0,63511.0,0.002924]
[1719806122798,1.91781157,63512.0,63511.0,0.001924]
[1719806123213,1.91781157,63512.0,63511.0,0.000924]
[1719806123611,1.91781157,63512.0,63511.0,0.001924]
[1719806123815,1.91781157,63512.0,63511.0,0.000924]
[1719806123816,1.91780976,63512.0,63511.0,0.000924]
[1719806124052,1.91880976,63512.0,63511.0,0.001924]
[1719806124212,1.91880948,63512.0,63511.0,0.001924]
[1719806124414,1.91880948,63512.0,63511.0,0.000924]
[1719806124415,1.91780948,63512.0,63511.0,0.000924]
[1719806124985,1.91880948,63512.0,63511.0,0.001924]
[1719806125343,1.82439724,63512.0,63511.0,0.001924]
[1719806125547,1.94241254,63512.0,63511.0,0.001924]
[1719806126909,1.82439724,63512.0,63511.0,0.001924]
[1719806127112,1.86912825,63512.0,63511.0,0.001924]
[1719806127238,1.86912825,63512.0,63511.0,0.000924]
[1719806127239,1.60392493,63512.0,63511.0,0.000924]
[1719806127444,1.60392493,63512.0,63511.0,0.199724]
[1719806127445,1.05908083,63512.0,63511.0,0.199724]
[1719806127643,0.98925626,63512.0,63511.0,0.200724]
[1719806128254,0.98825626,63512.0,63511.0,0.199724]
[1719806128455,0.60105526,63512.0,63511.0,0.200724]
[1719806128658,0.20200426,63512.0,63511.0,0.200724]
[1719806128858,0.20200426,63512.0,63511.0,0.199724]
[1719806128859,0.17514,63512.0,63511.0,0.199724]
[1719806129105,0.17414,63512.0,63511.0,0.199724]
[1719806130657,0.17514,63512.0,63511.0,0.199724]
[1719806132116,0.33259,63512.0,63511.0,0.199724]
[1719806132748,0.25929,63512.0,63511.0,0.199724]
[1719806132956,0.17514,63512.0,63511.0,0.199724]
[1719806147253,0.17514,63512.0,63511.0,0.357177]
[1719806147549,0.17514,63512.0,63511.0,0.672083]
[1719806148406,0.17414,63512.0,63511.0,0.672083]
[1719806148739,0.17414,63512.0,63511.0,0.674083]
[1719806148939,0.17414,63512.0,63511.0,0.359177]
[1719806149800,0.17414,63512.0,63511.0,0.365177]
[1719806150003,0.17414,63512.0,63511.0,0.357177]
[1719806150248,0.17414,63512.0,63511.0,0.365177]
[1719806150380,0.17414,63512.0,63511.0,0.370177]
[1719806156017,0.17414,63512.0,63511.0,0.212724]
[1719806160739,0.07414,63512.0,63511.0,0.370177]
[1719806160942,0.00084,63512.0,63511.0,0.999989]
[1719806161158,0.00084,63512.0,63511.0,1.472349]
[1719806161883,0.00084,63512.0,63511.0,1.60317712]
[1719806162268,0.00084,63512.0,63511.0,1.472349]
[1719806162489,0.00084,63512.0,63511.0,1.157443]
[1719806164072,0.00084,63512.0,63511.0,1.472349]
[1719806164503,0.00084,63512.0,63511.0,1.96959398]
[1719806164769,0.00084,63512.0,63511.0,2.23124028]
[1719806165531,0.00084,63512.0,63511.0,2.22624028]
[1719806166290,0.00084,63512.0,63511.0,2.21824028]
[1719806167110,0.00084,63512.0,63511.0,2.22624028]
[1719806167519,0.00084,63512.0,63511.0,2.21823594]
[1719806167928,0.00084,63512.0,63511.0,2.24423594]
[1719806168342,0.00084,63512.0,63511.0,2.23223594]
[1719806168470,0.00084,63512.0,63511.0,2.24623594]
[1719806169244,0.00084,63512.0,63511.0,2.22623594]
[1719806169487,0.00084,63512.0,63511.0,2.24623594]
[1719806170416,0.00084,63512.0,63511.0,2.22623594]
[1719806170654,0.00084,63512.0,63511.0,2.09541993]
[1719806170865,0.00084,63512.0,63511.0,2.22623568]
[1719806172102,0.00084,63512.0,63511.0,1.91132968]
[1719806172305,0.07414,63512.0,63511.0,1.78051393]
[1719806173711,0.00084,63512.0,63511.0,1.78051393]
[1719806173919,0.07414,63512.0,63511.0,1.78051393]
[1719806174938,0.07414,63512.0,63511.0,0.76156295]
[1719806175264,0.07414,63512.0,63511.0,0.77556295]
[1719806175381,0.07414,63512.0,63511.0,0.76156295]
[1719806175581,0.07414,63512.0,63511.0,0.60410995]
[1719806175788,0.07414,63512.0,63511.0,0.61810995]
[1719806176189,0.07414,63512.0,63511.0,0.63010995]
[1719806176629,0.07414,63512.0,63511.0,0.61810995]
[1719806177073,0.07414,63512.0,63511.0,0.63010995]
[1719806177450,0.23159,63512.0,63511.0,0.63010995]
[1719806177658,0.42959,63512.0,63511.0,0.63010995]
[1719806180415,0.745091,63512.0,63511.0,0.63010995]
[1719806180614,1.079992,63512.0,63511.0,0.63010995]
[1719806180816,0.671791,63512.0,63511.0,0.63010995]
[1719806181194,0.765091,63512.0,63511.0,0.63010995]
[1719806181401,0.745091,63512.0,63511.0,0.63010995]
[1719806181776,1.079992,63512.0,63511.0,0.63010995]
[1719806182642,1.059992,63512.0,63511.0,0.63010995]
[1719806183458,1.059992,63512.0,63511.0,0.61810995]
[1719806183686,0.987692,63512.0,63511.0,0.61810995]
[1719806184006,1.060992,63512.0,63511.0,0.60410995]
[1719806184148,1.059992,63512.0,63511.0,0.60410995]
[1719806184349,1.059992,63512.0,63511.0,0.60610995]
[1719806184548,1.060992,63512.0,63511.0,0.60610995]
[1719806185018,1.060992,63512.0,63511.0,0.475284]
[1719806186248,1.080992,63512.0,63511.0,0.475284]
[1719806186494,1.060992,63512.0,63511.0,0.475284]
[1719806187552,0.987692,63512.0,63511.0,0.475284]
[1719806187755,1.060992,63512.0,63511.0,0.475284]
[1719806188799,1.080992,63512.0,63511.0,0.475284]
[1719806188980,1.060992,63512.0,63511.0,0.475284]
[1719806189329,1.080992,63512.0,63511.0,0.475284]
[1719806189501,1.060992,63512.0,63511.0,0.475284]
[1719806190067,1.080992,63512.0,63511.0,0.475284]
[1719806190280,1.060992,63512.0,63511.0,0.475284]
[1719806191314,1.300593,63512.0,63511.0,0.475284]
[1719806191519,1.058992,63512.0,63511.0,0.475284]
[1719806194723,1.038992,63512.0,63511.0,0.475284]
[1719806194942,1.058992,63512.0,63511.0,0.475284]
[1719806195113,0.985692,63512.0,63511.0,0.475284]
[1719806195315,1.058992,63512.0,63511.0,0.475284]
[1719806202746,1.373893,63512.0,63511.0,0.475284]
[1719806203352,1.058992,63512.0,63511.0,0.475284]
[1719806203739,1.373893,63512.0,63511.0,0.475284]
[1719806206301,1.40075193,63512.0,63511.0,0.475284]
[1719806208911,1.52375193,63512.0,63511.0,0.475284]
[1719806209615,2.29569191,63512.0,63511.0,0.475284]
[1719806209793,2.38996922,63512.0,63511.0,0.475284]
[1719806209992,2.29569191,63512.0,63511.0,0.475284]
[1719806210373,2.29469191,63512.0,63511.0,0.475284]
[1719806210780,2.29669191,63512.0,63511.0,0.476284]
[1719806211221,2.29469191,63512.0,63511.0,0.475284]
[1719806211628,2.29669191,63512.0,63511.0,0.474284]
[1719806211800,2.29669191,63512.0,63511.0,0.475284]
[1719806212851,2.09669191,63512.0,63511.0,0.475284]
[1719806213398,2.3909257,63512.0,63511.0,0.475284]
[1719806213570,2.1909257,63512.0,63511.0,0.475284]
[1719806214006,2.09669191,63512.0,63511.0,0.475284]
[1719806215769,2.29669191,63512.0,63511.0,0.475284]
[1719806217057,1.122395,63498.0,63497.0,0.089]
[1719806217781,1.195695,63498.0,63497.0,0.089]
[1719806218584,1.195695,63498.0,63497.0,0.099]
[1719806220155,1.195695,63498.0,63497.0,0.105]
[1719806220554,1.175695,63498.0,63497.0,0.105]
[1719806222721,1.175695,63498.0,63497.0,0.105924]
[1719806223215,1.195695,63498.0,63497.0,0.105924]
[1719806223971,1.175695,63498.0,63497.0,0.105924]
[1719806225199,1.195695,63498.0,63497.0,0.105924]
[1719806225384,1.175695,63498.0,63497.0,0.105924]
[1719806225681,1.195695,63498.0,63497.0,0.105924]
[1719806226193,1.175695,63498.0,63497.0,0.105924]
[1719806226820,1.195695,63498.0,63497.0,0.105924]
[1719806227023,1.195695,63498.0,63497.0,0.016924]
[1719806232188,1.31440784,63498.0,63497.0,0.016924]
[1719806232407,1.24110784,63498.0,63497.0,0.016924]
[1719806232615,1.31440784,63498.0,63497.0,0.016924]
[1719806233372,1.29440784,63498.0,63497.0,0.016924]
[1719806233783,1.202395,63498.0,63497.0,0.016924]
[1719806233968,1.275695,63498.0,63497.0,0.016924]
[1719806235556,1.295695,63498.0,63497.0,0.016924]
[1719806238739,1.275695,63498.0,63497.0,0.016924]
[1719806239145,1.30259262,63498.0,63497.0,0.016924]
[1719806239320,1.22929262,63498.0,63497.0,0.016924]
[1719806239546,0.98762262,63498.0,63497.0,0.016924]
[1719806241687,0.98762262,63498.0,63497.0,0.100124]
[1719806244370,0.98762262,63498.0,63497.0,0.169524]
[1719806248068,1.00762262,63498.0,63497.0,0.169524]
[1719806248272,1.00762262,63498.0,63497.0,0.016924]
[1719806248427,1.7689316,63498.0,63497.0,0.016924]
[1719806248844,1.86333268,63498.0,63497.0,0.016924]
[1719806249226,1.7689316,63498.0,63497.0,0.010924]
[1719806249429,1.7689316,63498.0,63497.0,0.000924]
[1719806249676,1.7699316,63498.0,63497.0,0.002924]
[1719806250064,1.7689316,63498.0,63497.0,0.000924]
[1719806250265,1.7729316,63498.0,63497.0,0.002924]
[1719806250839,1.86734941,63498.0,63497.0,0.002924]
[1719806251324,1.7729316,63498.0,63497.0,0.002924]
[1719806251931,1.86734941,63498.0,63497.0,0.002924]
[1719806252512,1.7729316,63498.0,63497.0,0.002924]
[1719806252881,1.86738208,63498.0,63497.0,0.002924]
[1719806253226,1.7729316,63498.0,63497.0,0.002924]
[1719806253631,1.86740359,63498.0,63497.0,0.002924]
[1719806253807,2.90283531,63498.0,63497.0,0.002924]
[1719806254441,2.7405016,63498.0,63497.0,0.002924]
[1719806257635,3.08221513,63498.0,63497.0,0.002924]
[1719806258967,3.08215466,63498.0,63497.0,0.002924]
[1719806259400,2.9405016,63498.0,63497.0,0.002924]
[1719806259869,1.783217,63491.0,63490.0,0.0010089]
[1719806259993,2.6455586,63491.0,63490.0,0.0010089]
[1719806261679,2.6455586,63491.0,63490.0,0.0020089]
[1719806262079,2.6475586,63491.0,63490.0,0.0010089]
[1719806262472,2.6455586,63491.0,63490.0,0.0020089]
[1719806263478,2.6555586,63491.0,63490.0,0.0030089]
[1719806263932,2.8895586,63491.0,63490.0,0.0030089]
[1719806266406,3.0073709,63491.0,63490.0,0.0030089]
[1719806267279,3.3223759,63491.0,63490.0,0.0030089]
[1719806268281,3.5223759,63491.0,63490.0,0.0030089]
[1719806268493,3.52234476,63491.0,63490.0,0.0030089]
[1719806269952,1.437743,63481.0,63480.0,0.000924]
[1719806270157,1.7232796,63481.0,63480.0,0.000924]
[1719806270358,2.1179796,63481.0,63480.0,0.000924]
[1719806270846,2.4839796,63481.0,63480.0,0.000924]
[1719806271061,2.6514796,63481.0,63480.0,0.000924]
[1719806271460,2.6574796,63481.0,63480.0,0.001924]
[1719806271874,2.6514796,63481.0,63480.0,0.000924]
[1719806272004,2.6574796,63481.0,63480.0,0.004924]
[1719806273305,2.6574796,63481.0,63480.0,0.001924]
[1719806273505,2.6704796,63481.0,63480.0,0.001924]
[1719806275473,2.4704796,63481.0,63480.0,0.001924]
[1719806275706,2.6704796,63481.0,63480.0,0.001924]
[1719806280122,2.68959068,63481.0,63480.0,0.001924]
[1719806282127,2.71810025,63481.0,63480.0,0.001924]
[1719806282329,1.88279068,63481.0,63480.0,0.169724]
[1719806282531,1.95609068,63481.0,63480.0,0.169724]
[1719806283556,0.9526437,63481.0,63480.0,0.169724]
[1719806283783,1.0259437,63481.0,63480.0,0.169724]
[1719806283960,1.0459437,63481.0,63480.0,0.169724]
[1719806284547,1.0329437,63481.0,63480.0,0.169724]
[1719806284880,1.0399437,63481.0,63480.0,0.168724]
[1719806285307,1.0299437,63481.0,63480.0,0.168724]
[1719806285700,1.3309977,63481.0,63480.0,0.168724]
[1719806286107,1.3509977,63481.0,63480.0,0.168724]
[1719806299352,1.2576977,63481.0,63480.0,0.168724]
[1719806299567,1.3309977,63481.0,63480.0,0.168724]
[1719806301395,0.3125357,63481.0,63480.0,0.168724]
[1719806301646,0.1550087,63481.0,63480.0,0.168724]
[1719806301861,0.12811108,63481.0,63480.0,0.168724]
[1719806302069,0.10141108,63481.0,63480.0,0.168724]
[1719806302263,0.09812677,63481.0,63480.0,0.168724]
[1719806303027,0.09212677,63481.0,63480.0,0.168724]
[1719806303445,0.56470777,63481.0,63480.0,0.168724]
[1719806303612,0.87976177,63481.0,63480.0,0.168724]
[1719806303966,0.97676177,63481.0,63480.0,0.168724]
[1719806304138,0.97676177,63481.0,63480.0,0.173724]
[1719806304506,0.98276177,63481.0,63480.0,0.173724]
[1719806304713,0.66770777,63481.0,63480.0,0.173724]
[1719806304914,0.66170777,63481.0,63480.0,0.173724]
[1719806305108,0.66170777,63481.0,63480.0,0.174724]
[1719806305974,0.34665377,63481.0,63480.0,0.174724]
[1719806307004,0.1733,63481.0,63480.0,0.174724]
[1719806307210,0.0733,63481.0,63480.0,0.174724]
[1719806307412,0.0733,63481.0,63480.0,0.169724]
[1719806307788,0.0743,63481.0,63480.0,0.169724]
[1719806307988,0.0733,63481.0,63480.0,0.168724]
[1719806308392,0.0773,63481.0,63480.0,0.173724]
[1719806308818,0.0733,63481.0,63480.0,0.173724]
[1719806309165,0.1,63482.0,63481.0,0.1584]
[1719806309373,0.0733,63483.0,63482.0,0.315924]
[1719806310189,0.230822,63483.0,63482.0,0.1584]
[1719806310401,0.545866,63483.0,63482.0,0.1584]
[1719806310599,0.645866,63483.0,63482.0,0.1584]
[1719806310979,0.645866,63483.0,63482.0,0.1604]
[1719806312164,0.330822,63483.0,63482.0,0.1604]
[1719806312544,0.331822,63483.0,63482.0,0.1604]
[1719806313088,0.330822,63483.0,63482.0,0.1584]
[1719806313407,0.1733,63483.0,63482.0,0.1584]
[1719806313602,0.0753,63483.0,63482.0,0.1584]
[1719806314276,0.0783,63483.0,63482.0,0.1584]
[1719806314691,0.0743,63483.0,63482.0,0.1584]
[1719806315073,0.0783,63483.0,63482.0,0.1584]
[1719806318216,0.07914,63483.0,63482.0,0.1584]
[1719806322785,0.236662,63483.0,63482.0,0.1584]
[1719806322986,0.336662,63483.0,63482.0,0.1584]
[1719806324938,0.17914,63483.0,63482.0,0.1584]
[1719806325077,0.07914,63483.0,63482.0,0.1584]
[1719806325280,0.00584,63483.0,63482.0,0.1584]
[1719806325479,0.00584,63483.0,63482.0,0.630973]
[1719806326297,0.00584,63483.0,63482.0,0.315924]
[1719806326487,0.00484,63483.0,63482.0,0.315924]
[1719806326810,0.00584,63483.0,63482.0,0.325924]
[1719806327800,0.00184,63483.0,63482.0,0.325924]
[1719806328018,0.00184,63483.0,63482.0,0.326924]
[1719806328596,0.00184,63483.0,63482.0,0.325924]
[1719806328795,0.00284,63483.0,63482.0,0.329924]
[1719806332449,0.00284,63483.0,63482.0,0.644973]
[1719806336373,0.00284,63483.0,63482.0,0.329924]
[1719806337154,0.07614,63483.0,63482.0,0.329924]
[1719806342875,0.00284,63483.0,63482.0,0.329924]
[1719806344348,0.00284,63483.0,63482.0,0.644973]
[1719806346004,0.10284,63483.0,63482.0,0.644973]
[1719806347315,0.10284,63483.0,63482.0,0.664973]
[1719806347517,0.10284,63483.0,63482.0,0.980022]
[1719806351524,0.10284,63483.0,63482.0,0.960022]
[1719806354452,0.10284,63483.0,63482.0,0.980022]
[1719806354779,0.10284,63483.0,63482.0,1.275071]
[1719806362577,0.10284,63483.0,63482.0,0.960022]
[1719806366002,0.10284,63483.0,63482.0,0.980022]
[1719806366210,0.10284,63483.0,63482.0,1.45740998]
[1719806366815,0.10284,63483.0,63482.0,1.52048398]
[1719806367137,0.10284,63483.0,63482.0,2.19305398]
[1719806367336,0.10184,63483.0,63482.0,1.98905398]
[1719806369669,0.10184,63483.0,63482.0,1.99705398]
[1719806370419,0.10184,63483.0,63482.0,1.97705398]
[1719806370628,0.10184,63483.0,63482.0,1.99705398]
[1719806371279,0.10184,63483.0,63482.0,1.99305398]
[1719806371478,0.10084,63483.0,63482.0,1.97905398]
[1719806371667,0.10184,63483.0,63482.0,2.00705398]
[1719806372073,0.10084,63483.0,63482.0,1.99305398]
[1719806372479,0.10184,63483.0,63482.0,2.00705398]
[1719806374207,0.10084,63483.0,63482.0,1.99305398]
[1719806374409,0.10084,63483.0,63482.0,1.97905398]
[1719806374615,0.10084,63483.0,63482.0,1.98905398]
[1719806374616,0.10184,63483.0,63482.0,1.98905398]
[1719806374821,0.10184,63483.0,63482.0,2.00305398]
[1719806375726,0.10184,63483.0,63482.0,2.1339313]
[1719806378541,0.10184,63483.0,63482.0,2.3339313]
[1719806378742,0.10184,63483.0,63482.0,2.1339313]
[1719806380360,0.10184,63483.0,63482.0,2.13393082]
[1719806383199,0.10184,63483.0,63482.0,2.00305398]
[1719806383357,0.10184,63483.0,63482.0,2.13393182]
[1719806386152,0.10184,63483.0,63482.0,2.11393182]
[1719806386337,0.10184,63483.0,63482.0,1.79888282]
[1719806386537,0.10184,63483.0,63482.0,1.73268545]
[1719806387263,0.10184,63483.0,63482.0,1.64048545]
[1719806389612,0.10184,63483.0,63482.0,1.64049031]
[1719806390010,0.10184,63483.0,63482.0,1.6404901]
[1719806390226,0.10184,63483.0,63482.0,1.50960498]
[1719806398538,0.10184,63483.0,63482.0,1.52960498]
[1719806399273,0.10184,63483.0,63482.0,1.67340498]
[1719806400864,0.10184,63483.0,63482.0,1.87340498]
[1719806401195,0.10184,63483.0,63482.0,2.23573625]
[1719806401394,0.10184,63483.0,63482.0,2.18845398]
[1719806401728,0.10184,63483.0,63482.0,2.38845398]
[1719806401933,0.10184,63483.0,63482.0,2.90350298]
[1719806402129,0.10184,63483.0,63482.0,2.9689356]
[1719806402469,0.10184,63483.0,63482.0,2.9549356]
[1719806402871,0.10584,63483.0,63482.0,3.39607926]
[1719806403072,0.10084,63483.0,63482.0,3.85291328]
[1719806403274,0.10584,63483.0,63482.0,3.85291328]
[1719806403480,0.11084,63483.0,63482.0,4.27465533]
[1719806403682,0.10584,63483.0,63482.0,4.27365533]
[1719806403965,0.10584,63483.0,63482.0,4.27265533]
[1719806403966,0.10084,63483.0,63482.0,4.27265533]
[1719806404246,0.11084,63483.0,63482.0,4.27465533]
[1719806404679,0.10584,63483.0,63482.0,4.27358293]
[1719806405090,0.10584,63483.0,63482.0,4.27358039]
[1719806405623,0.00084,63490.0,63489.0,2.237567]
[1719806405827,0.00084,63490.0,63489.0,3.47016476]
[1719806406034,0.00084,63490.0,63489.0,3.89726138]
[1719806406650,0.00084,63490.0,63489.0,4.38642235]
[1719806407033,0.06684,63511.0,63497.0,1.522412]
[1719806407034,0.00084,63511.0,63497.0,1.522412]
[1719806407322,0.00084,63511.0,63497.0,2.37451098]
[1719806407523,0.00084,63511.0,63497.0,2.55806152]
[1719806407935,0.06084,63511.0,63497.0,2.55806152]
[1719806408138,0.00084,63511.0,63497.0,2.55806505]
[1719806408268,0.00084,63511.0,63497.0,2.87304005]
[1719806408861,0.00084,63511.0,63497.0,2.88704005]
[1719806409477,0.00084,63511.0,63497.0,2.90104005]
[1719806409932,0.00084,63511.0,63497.0,4.09787886]
[1719806410348,0.00084,63511.0,63497.0,4.42493116]
[1719806411243,0.0764,63510.0,63497.0,4.17424015]
[1719806411454,0.0764,63510.0,63497.0,4.09787146]
[1719806412120,0.08130346,63509.0,63497.0,3.00959646]
[1719806412327,0.08130346,63509.0,63497.0,2.70959646]
[1719806412532,0.15460346,63509.0,63497.0,2.62777438]
[1719806412690,0.15460346,63509.0,63497.0,2.82777438]
[1719806413099,0.0622,63502.0,63497.0,2.76247438]
[1719806413286,0.0622,63502.0,63497.0,2.56247438]
[1719806413839,0.0622,63502.0,63497.0,2.47343357]
[1719806414075,0.0622,63502.0,63497.0,2.37888598]
[1719806414429,0.10084,63498.0,63497.0,2.67343384]
[1719806414629,0.10084,63498.0,63497.0,2.64430549]
[1719806414829,0.10084,63498.0,63497.0,2.64430546]
[1719806415714,0.10084,63498.0,63497.0,1.42980826]
[1719806415914,0.10084,63498.0,63497.0,1.38253772]
[1719806416110,0.10084,63498.0,63497.0,1.33526098]
[1719806416514,0.17724,63498.0,63497.0,1.02028598]
[1719806416913,0.17724,63498.0,63497.0,0.68646]
[1719806416914,0.24324,63498.0,63497.0,0.68646]
[1719806417115,0.24324,63498.0,63497.0,0.70046]
[1719806417408,0.400725,63498.0,63497.0,0.68646]
[1719806417612,0.400725,63498.0,63497.0,0.70046]
[1719806417841,0.377625,63498.0,63497.0,0.70046]
[1719806418219,0.377625,63498.0,63497.0,0.68646]
[1719806418419,0.377625,63498.0,63497.0,0.69346]
[1719806419075,0.22014,63498.0,63497.0,0.69346]
[1719806419702,0.377625,63498.0,63497.0,0.47946]
[1719806420109,0.377625,63498.0,63497.0,0.49046]
[1719806428770,0.477625,63498.0,63497.0,0.49046]
[1719806429568,0.32014,63498.0,63497.0,0.49046]
[1719806429771,0.17774,63498.0,63497.0,1.64023598]
[1719806430145,0.17774,63498.0,63497.0,1.32526098]
[1719806431187,0.17774,63498.0,63497.0,0.69046]
[1719806431345,0.31934,63498.0,63497.0,0.49046]
[1719806431545,0.791795,63498.0,63497.0,0.49046]
[1719806431986,0.476825,63498.0,63497.0,0.49046]
[1719806433355,0.791795,63498.0,63497.0,0.49046]
[1719806435213,1.106765,63498.0,63497.0,0.49046]
[1719806435800,1.13364204,63498.0,63497.0,0.49046]
[1719806435991,1.15364204,63498.0,63497.0,0.49046]
[1719806436224,1.46861204,63498.0,63497.0,0.49046]
[1719806436987,1.44861204,63498.0,63497.0,0.49046]
[1719806441934,1.13364204,63498.0,63497.0,0.49046]
[1719806442144,0.89197204,63498.0,63497.0,0.49046]
[1719806443249,0.67707204,63498.0,63497.0,0.49046]
[1719806443914,0.75037204,63498.0,63497.0,0.49046]
[1719806444118,1.12984204,63498.0,63497.0,0.49046]
[1719806444309,1.20624204,63498.0,63497.0,0.49046]
[1719806444638,1.22624204,63498.0,63497.0,0.49046]
[1719806445575,1.20624204,63498.0,63497.0,0.49046]
[1719806446191,1.22624204,63498.0,63497.0,0.49046]
[1719806446617,1.22624204,63498.0,63497.0,0.491384]
[1719806448440,1.13294204,63498.0,63497.0,0.491384]
[1719806448639,1.20624204,63498.0,63497.0,0.491384]
[1719806449585,1.12984204,63498.0,63497.0,0.491384]
[1719806449838,1.06534204,63498.0,63497.0,0.491384]
[1719806450919,0.75037204,63498.0,63497.0,0.491384]
[1719806452131,0.25104,63498.0,63497.0,0.491384]
[1719806452334,0.17774,63498.0,63497.0,0.963846]
[1719806452538,0.17774,63498.0,63497.0,0.648871]
[1719806453257,0.17774,63498.0,63497.0,0.491384]
[1719806454674,0.712495,63498.0,63497.0,0.491384]
[1719806457937,1.05434148,63498.0,63497.0,0.491384]
[1719806459706,1.13074148,63498.0,63497.0,0.491384]
[1719806459948,1.46571148,63498.0,63497.0,0.491384]
[1719806460191,1.58871148,63498.0,63497.0,0.491384]
[1719806460596,1.84548705,63498.0,63497.0,0.491384]
[1719806460814,2.16045705,63498.0,63497.0,0.491384]
[1719806461021,2.36077046,63498.0,63497.0,0.484384]
[1719806461571,3.07574046,63498.0,63497.0,0.484384]
[1719806461775,3.07574046,63498.0,63483.0,0.05588463]
[1719806461776,0.9449,63484.0,63483.0,0.05588463]
[1719806462111,2.25524546,63484.0,63483.0,0.05588463]
[1719806462360,2.25524546,63484.0,63481.0,0.000924]
[1719806462361,1.73247,63482.0,63481.0,0.000924]
[1719806462530,2.18198546,63482.0,63481.0,0.000924]
[1719806462725,2.15206302,63482.0,63481.0,0.000924]
[1719806463109,2.27010484,63482.0,63481.0,0.000924]
[1719806463305,1.95505584,63482.0,63481.0,0.000924]
[1719806463692,2.02041402,63482.0,63481.0,0.000924]
[1719806464357,2.02841402,63482.0,63481.0,0.001924]
[1719806465114,1.58724748,63482.0,63481.0,0.002924]
[1719806465318,1.40384748,63482.0,63481.0,0.002924]
[1719806465520,1.52188808,63482.0,63481.0,0.002924]
[1719806465651,1.40384748,63482.0,63481.0,0.002924]
[1719806466073,1.52189638,63482.0,63481.0,0.002924]
[1719806466280,1.49829402,63482.0,63481.0,0.002924]
[1719806466478,1.48429402,63482.0,63481.0,0.000924]
[1719806466706,1.51489638,63482.0,63481.0,0.001924]
[1719806466911,1.52689638,63482.0,63481.0,0.002924]
[1719806467103,1.51989638,63482.0,63481.0,0.001924]
[1719806467319,1.40184748,63482.0,63481.0,0.001924]
[1719806467536,1.51989638,63482.0,63481.0,0.001924]
[1719806468167,1.40884748,63482.0,63481.0,0.002924]
[1719806469686,1.57118646,63482.0,63481.0,0.002924]
[1719806477284,1.54430998,63482.0,63481.0,0.002924]
[1719806478122,1.85935898,63482.0,63481.0,0.002924]
[1719806478951,2.31644269,63482.0,63481.0,0.002924]
[1719806479116,2.31644269,63482.0,63475.0,0.000924]
[1719806479117,1.712605,63476.0,63475.0,0.000924]
[1719806479318,3.15391463,63476.0,63475.0,0.000924]
[1719806479546,3.43731463,63476.0,63475.0,0.000924]
[1719806479820,3.46031463,63476.0,63475.0,0.000924]
[1719806480233,3.66031463,63476.0,63475.0,0.000924]
[1719806480435,3.67131463,63476.0,63475.0,0.001924]
[1719806480645,3.53563163,63476.0,63475.0,0.001924]
[1719806480851,3.53063163,63476.0,63475.0,0.001924]
[1719806481112,3.50063163,63476.0,63475.0,0.001924]
[1719806481356,3.46719663,63476.0,63475.0,0.002924]
[1719806482889,3.34640363,63476.0,63475.0,0.002924]
[1719806483112,3.30548663,63476.0,63475.0,0.002924]
[1719806483319,3.22492263,63476.0,63475.0,0.002924]
[1719806484875,3.41500019,63476.0,63475.0,0.002924]
[1719806487975,2.75081819,63476.0,63475.0,0.002924]
[1719806488202,2.56741819,63476.0,63475.0,0.002924]
[1719806488401,3.9061289,63476.0,63475.0,6.4e-07]
[1719806488619,3.9061289,63476.0,63452.0,0.006312]
[1719806488620,0.452322,63463.0,63452.0,0.066]
[1719806488780,0.62495763,63463.0,63452.0,0.066]
[1719806488984,2.18553363,63463.0,63452.0,0.066]
[1719806489184,2.20853363,63463.0,63452.0,0.066]
[1719806489766,2.21367763,63463.0,63452.0,0.066]
[1719806489993,2.21367763,63463.0,63462.0,0.001924]
[1719806489994,2.42767763,63463.0,63462.0,0.001924]
[1719806490774,2.44167763,63463.0,63462.0,0.002924]
[1719806491151,2.42767763,63463.0,63462.0,0.001924]
[1719806491730,2.53777763,63463.0,63462.0,0.001924]
[1719806492202,2.52377763,63463.0,63462.0,0.000924]
[1719806492555,2.55177763,63463.0,63462.0,0.000924]
[1719806492787,2.53777763,63463.0,63462.0,0.000924]
[1719806493020,2.72377763,63463.0,63462.0,0.000924]
[1719806493369,2.75177763,63463.0,63462.0,0.000924]
[1719806493574,2.73777763,63463.0,63462.0,0.000924]
[1719806493792,2.72377763,63463.0,63462.0,0.000924]
[1719806494020,2.73777763,63463.0,63462.0,0.000924]
[1719806494242,1.418436,63450.0,63449.0,0.000924]
[1719806494449,1.58077498,63450.0,63449.0,0.000924]
[1719806494663,1.73074791,63450.0,63449.0,0.000924]
[1719806495494,2.16199791,63450.0,63449.0,0.000924]
[1719806495621,2.14549791,63450.0,63449.0,0.000924]
[1719806495823,2.34549791,63450.0,63449.0,0.000924]
[1719806496254,2.35649791,63450.0,63449.0,0.000924]
[1719806496454,2.14549791,63450.0,63449.0,0.000924]
[1719806496812,2.37149791,63450.0,63449.0,0.000924]
[1719806497657,2.17149791,63450.0,63449.0,0.000924]
[1719806500668,2.37149791,63450.0,63449.0,0.000924]
[1719806502725,2.53073496,63450.0,63449.0,0.000924]
[1719806502929,2.37149791,63450.0,63449.0,0.000924]
[1719806506571,2.39062616,63450.0,63449.0,0.000924]
[1719806506978,3.19655172,63450.0,63449.0,0.000924]
[1719806508935,2.41849856,63449.0,63448.0,0.009251]
[1719806509139,4.10916454,63449.0,63448.0,0.00622096]
[1719806509304,4.13613747,63449.0,63448.0,0.00622096]
[1719806510329,4.15013747,63449.0,63448.0,0.00622096]
[1719806510500,4.16213747,63449.0,63448.0,0.00622096]
[1719806510705,3.89274716,63449.0,63448.0,0.00622096]